fUST/lending_fUST_20250702
["ID","MTS","AMOUNT","RATE_DAILY","PERIOD"]
[368895895,1751387442356,-460.0,0.00018544,2]
[368895897,1751387442366,-460.0,0.00018544,2]
[368895899,1751387442376,-382.80160327,0.00018544,2]
[368896043,1751387443852,-278.65699985,0.00017699,2]
[368896052,1751387443908,-181.34300015,0.00017699,2]
[368896054,1751387443918,-167.18271929,0.00018439,2]
[368896056,1751387443928,-460.0,0.00018542,2]
[368896058,1751387443938,-77.19839673,0.00018544,2]
[368896060,1751387443947,-460.0,0.00018544,2]
[368896062,1751387443957,-460.0,0.00018544,2]
[368896064,1751387443967,-460.0,0.00018544,2]
[368896067,1751387443976,-460.0,0.00018544,2]
[368896069,1751387443986,-460.0,0.00018544,2]
[368896071,1751387443995,-460.0,0.00018544,2]
[368896072,1751387444004,-460.0,0.00018544,2]
[368896074,1751387444013,-460.0,0.00018544,2]
[368896077,1751387444024,-460.0,0.00018544,2]
[368896079,1751387444034,-460.0,0.00018544,2]
[368896082,1751387444043,-460.0,0.00018544,2]
[368896084,1751387444052,-467.14098332,0.00018544,2]
[368896086,1751387444062,-460.0,0.00018544,2]
[368896088,1751387444071,-460.0,0.00018544,2]
[368896090,1751387444081,-460.0,0.00018544,2]
[368896092,1751387444090,-460.0,0.00018544,2]
[368896094,1751387444100,-460.0,0.00018544,2]
[368896097,1751387444109,-460.0,0.00018544,2]
[368896100,1751387444119,-460.0,0.00018544,2]
[368896103,1751387444129,-318.27916767,0.00018544,2]
[368896106,1751387444139,-460.0,0.00018544,2]
[368896109,1751387444148,-460.0,0.00018544,2]
[368896112,1751387444158,-460.0,0.00018544,2]
[368896115,1751387444168,-460.0,0.00018544,2]
[368896118,1751387444178,-2367.1,0.00018544,2]
[368896121,1751387444187,-460.0,0.00018544,2]
[368896123,1751387444197,-460.0,0.00018544,2]
[368896125,1751387444207,-460.0,0.00018544,2]
[368896127,1751387444216,-460.0,0.00018544,2]
[368896129,1751387444225,-460.0,0.00018544,2]
[368896131,1751387444235,-460.0,0.00018544,2]
[368896133,1751387444245,-460.0,0.00018544,2]
[368896135,1751387444254,-460.0,0.00018544,2]
[368896137,1751387444263,-631.67,0.00018544,2]
[368896139,1751387444273,-460.0,0.00018544,2]
[368896141,1751387444282,-460.0,0.00018544,2]
[368896143,1751387444292,-460.0,0.00018544,2]
[368896145,1751387444301,-460.0,0.00018544,2]
[368896147,1751387444310,-460.0,0.00018544,2]
[368896149,1751387444320,-460.0,0.00018544,2]
[368896151,1751387444329,-460.0,0.00018544,2]
[368896153,1751387444338,-460.0,0.00018544,2]
[368896155,1751387444348,-460.0,0.00018544,2]
[368896157,1751387444358,-460.0,0.00018544,2]
[368896159,1751387444367,-606.9,0.00018544,2]
[368896161,1751387444376,-460.0,0.00018544,2]
[368896163,1751387444385,-460.0,0.00018544,2]
[368896165,1751387444396,-504.05,0.00018544,2]
[368896167,1751387444405,-460.0,0.00018544,2]
[368896169,1751387444414,-460.0,0.00018544,2]
[368896171,1751387444423,-460.0,0.00018544,2]
[368896173,1751387444433,-460.0,0.00018544,2]
[368896175,1751387444442,-460.0,0.00018544,2]
[368896177,1751387444451,-460.0,0.00018544,2]
[368896179,1751387444461,-460.0,0.00018544,2]
[368896181,1751387444471,-460.0,0.00018544,2]
[368896183,1751387444480,-460.0,0.00018545,2]
[368896185,1751387444490,-460.0,0.00018545,2]
[368896187,1751387444500,-460.0,0.00018545,2]
[368896189,1751387444509,-460.0,0.00018545,2]
[368896191,1751387444518,-460.0,0.00018545,2]
[368896193,1751387444528,-460.0,0.00018545,2]
[368896195,1751387444537,-460.0,0.00018545,2]
[368896197,1751387444547,-460.0,0.00018545,2]
[368896199,1751387444555,-460.0,0.00018545,2]
[368896201,1751387444565,-460.0,0.00018545,2]
[368896203,1751387444577,-460.0,0.00018545,2]
[368896205,1751387444587,-460.0,0.00018545,2]
[368896207,1751387444596,-460.0,0.00018545,2]
[368896209,1751387444606,-460.0,0.00018545,2]
[368896211,1751387444617,-374.19871313,0.00018545,2]
[368896213,1751387444626,-460.0,0.00018545,2]
[368896214,1751387444635,-460.0,0.00018545,2]
[368896216,1751387444646,-460.0,0.00018545,2]
[368896218,1751387444655,-460.0,0.00018545,2]
[368896220,1751387444665,-460.0,0.00018545,2]
[368896222,1751387444675,-460.0,0.00018545,2]
[368896224,1751387444684,-460.0,0.00018545,2]
[368896226,1751387444694,-460.0,0.00018545,2]
[368896228,1751387444703,-460.0,0.00018545,2]
[368896230,1751387444716,-556.52902155,0.00018545,2]
[368896232,1751387444727,-710.77,0.00018545,2]
[368896234,1751387444736,-500.0,0.00018545,2]
[368896236,1751387444746,-460.0,0.00018545,2]
[368896238,1751387444755,-460.0,0.00018545,2]
[368896240,1751387444768,-460.0,0.00018545,2]
[368896242,1751387444780,-460.0,0.00018545,2]
[368896244,1751387444789,-1401.1,0.00018545,2]
[368896246,1751387444799,-460.0,0.00018545,2]
[368896248,1751387444809,-460.0,0.00018545,2]
[368896250,1751387444818,-460.0,0.00018545,2]
[368896252,1751387444828,-460.0,0.00018545,2]
[368896254,1751387444838,-460.0,0.00018545,2]
[368896256,1751387444848,-701.34,0.00018545,2]
[368896258,1751387444857,-460.0,0.00018545,2]
[368896260,1751387444867,-2385.87,0.00018545,2]
[368896262,1751387444876,-500.0,0.00018573,2]
[368896265,1751387444888,-500.0,0.00018573,2]
[368896267,1751387444898,-460.0,0.00018675,2]
[368896269,1751387444907,-579.32,0.00018795,2]
[368896271,1751387444917,-460.0,0.00018795,2]
[368896273,1751387444926,-460.0,0.00018795,2]
[368896275,1751387444935,-1201.36,0.00018795,2]
[368896277,1751387444945,-460.0,0.00018795,2]
[368896279,1751387444954,-1487.46,0.00018795,2]
[368896281,1751387444964,-222.7,0.00018808,3]
[368896283,1751387444974,-500.0,0.00018814,2]
[368896285,1751387444983,-460.0,0.00018816,2]
[368896287,1751387444993,-268.67898299,0.00018816,2]
[368896289,1751387445002,-461.50587157,0.00018816,2]
[368896291,1751387445012,-460.0,0.00018816,2]
[368896293,1751387445022,-460.0,0.00018816,2]
[368896295,1751387445031,-1632.71,0.00018816,2]
[368896297,1751387445041,-460.0,0.00018816,2]
[368896299,1751387445050,-460.0,0.00018816,2]
[368896301,1751387445059,-460.0,0.00018816,2]
[368896303,1751387445069,-461.05888693,0.00018816,2]
[368896305,1751387445078,-460.0,0.00018816,2]
[368896307,1751387445088,-460.0,0.00018816,2]
[368896309,1751387445098,-1908.02,0.00018816,2]
[368896311,1751387445107,-1545.3,0.00018816,2]
[368896313,1751387445117,-1651.79,0.00018816,2]
[368896315,1751387445127,-460.0,0.00018816,2]
[368896317,1751387445137,-460.0,0.00018816,2]
[368896319,1751387445146,-1040.31,0.00018816,2]
[368896321,1751387445156,-460.0,0.00018816,2]
[368896323,1751387445166,-460.0,0.00018816,2]
[368896325,1751387445177,-460.0,0.00018816,2]
[368896327,1751387445187,-460.0,0.00018816,2]
[368896329,1751387445196,-460.0,0.00018816,2]
[368896331,1751387445206,-460.0,0.00018816,2]
[368896333,1751387445216,-460.0,0.00018816,2]
[368896335,1751387445226,-809.71,0.00018816,2]
[368896337,1751387445235,-460.0,0.00018817,2]
[368896339,1751387445245,-460.0,0.00018817,2]
[368896341,1751387445255,-500.0,0.00018817,2]
[368896354,1751387445366,-460.0,0.00018817,2]
[368896356,1751387445375,-460.0,0.00018817,2]
[368896358,1751387445385,-460.0,0.00018817,2]
[368896360,1751387445394,-460.0,0.00018817,2]
[368896362,1751387445403,-460.0,0.00018817,2]
[368896364,1751387445412,-460.0,0.00018817,2]
[368896366,1751387445421,-160.0,0.00018818,2]
[368896368,1751387445431,-201.68779143,0.00018818,2]
[368896370,1751387445440,-460.0,0.00018818,2]
[368896372,1751387445450,-460.0,0.00018818,2]
[368896374,1751387445460,-324.96163035,0.00018818,2]
[368896376,1751387445470,-460.0,0.00018818,2]
[368896378,1751387445479,-460.0,0.00018818,2]
[368896380,1751387445489,-460.0,0.00018818,2]
[368896382,1751387445498,-518.24382544,0.00018818,2]
[368896384,1751387445507,-460.0,0.00018818,2]
[368896386,1751387445517,-460.0,0.00018818,2]
[368896388,1751387445526,-460.0,0.00018818,2]
[368896390,1751387445536,-7.75248288,0.00018818,2]
[368896393,1751387445549,-452.24751712,0.00018818,2]
[368896395,1751387445559,-460.0,0.00018818,2]
[368896397,1751387445570,-460.0,0.00018818,2]
[368896399,1751387445585,-460.0,0.00018818,2]
[368896401,1751387445598,-460.0,0.00018818,2]
[368896403,1751387445607,-460.0,0.00018818,2]
[368896404,1751387445617,-460.0,0.00018818,2]
[368896406,1751387445626,-460.0,0.00018818,2]
[368896408,1751387445635,-460.0,0.00018818,2]
[368896410,1751387445645,-460.0,0.00018818,2]
[368896412,1751387445656,-460.0,0.00018818,2]
[368896414,1751387445665,-460.0,0.00018818,2]
[368896416,1751387445674,-600.63,0.00018818,2]
[368896418,1751387445683,-460.0,0.00018818,2]
[368896420,1751387445692,-460.0,0.00018818,2]
[368896422,1751387445702,-460.0,0.00018818,2]
[368896424,1751387445713,-460.0,0.00018818,2]
[368896426,1751387445723,-460.0,0.00018818,2]
[368896428,1751387445733,-460.0,0.00018818,2]
[368896430,1751387445743,-460.0,0.00018818,2]
[368896433,1751387445753,-460.0,0.00018818,2]
[368896435,1751387445762,-460.0,0.00018818,2]
[368896436,1751387445772,-460.0,0.00018818,2]
[368896439,1751387445782,-460.0,0.00018818,2]
[368896441,1751387445792,-229.95,0.00018818,2]
[368896443,1751387445801,-460.0,0.00018818,2]
[368896445,1751387445811,-460.0,0.00018818,2]
[368896447,1751387445820,-460.0,0.00018818,2]
[368896449,1751387445831,-2367.1,0.00018818,2]
[368896451,1751387445841,-460.0,0.00018818,2]
[368896453,1751387445851,-460.0,0.00018818,2]
[368896455,1751387445861,-460.0,0.00018818,2]
[368896457,1751387445870,-460.0,0.00018818,2]
[368896459,1751387445879,-460.0,0.00018818,2]
[368896461,1751387445888,-460.0,0.00018818,2]
[368896463,1751387445898,-460.0,0.00018818,2]
[368896465,1751387445907,-631.67,0.00018818,2]
[368896467,1751387445916,-460.0,0.00018818,2]
[368896469,1751387445925,-460.0,0.00018818,2]
[368896471,1751387445934,-460.0,0.00018818,2]
[368896473,1751387445944,-460.0,0.00018818,2]
[368896475,1751387445953,-460.0,0.00018818,2]
[368896477,1751387445963,-606.9,0.00018818,2]
[368896479,1751387445973,-460.0,0.00018818,2]
[368896481,1751387445983,-460.0,0.00018818,2]
[368896483,1751387445993,-504.05,0.00018818,2]
[368896485,1751387446002,-460.0,0.00018818,2]
[368896487,1751387446012,-460.0,0.00018818,2]
[368896489,1751387446022,-460.0,0.00018818,2]
[368896491,1751387446031,-460.0,0.00018818,2]
[368896493,1751387446041,-460.0,0.00018818,2]
[368896495,1751387446050,-460.0,0.00018819,2]
[368896497,1751387446060,-460.0,0.00018819,2]
[368896499,1751387446069,-460.0,0.00018819,2]
[368896501,1751387446079,-460.0,0.00018819,2]
[368896503,1751387446088,-460.0,0.00018819,2]
[368896505,1751387446098,-460.0,0.00018819,2]
[368896507,1751387446108,-460.0,0.00018819,2]
[368896509,1751387446117,-460.0,0.00018819,2]
[368896511,1751387446127,-460.0,0.00018819,2]
[368896513,1751387446136,-460.0,0.00018819,2]
[368896516,1751387446146,-460.0,0.00018819,2]
[368896518,1751387446156,-710.77,0.00018819,2]
[368896520,1751387446166,-460.0,0.00018819,2]
[368896522,1751387446175,-460.0,0.00018819,2]
[368896524,1751387446184,-1401.1,0.00018819,2]
[368896526,1751387446194,-460.0,0.00018819,2]
[368896528,1751387446204,-460.0,0.00018819,2]
[368896530,1751387446214,-460.0,0.00018819,2]
[368896532,1751387446223,-396.87294872,0.00018819,2]
[368896534,1751387446232,-701.34,0.00018819,2]
[368896536,1751387446242,-460.0,0.00018819,2]
[368896538,1751387446253,-2385.87,0.00018819,2]
[368896540,1751387446262,-500.0,0.00018873,2]
[368896542,1751387446271,-500.0,0.00018873,2]
[368896544,1751387446281,-500.0,0.00018873,2]
[368896546,1751387446291,-172.19212022,0.00018873,2]
[368896548,1751387446300,-196.42736786,0.000189,2]
[368896551,1751387446310,-1168.69506864,0.000189,2]
[368896553,1751387446319,-1680.0,0.00018937,2]
[368896555,1751387446329,-460.0,0.00018949,2]
[368896557,1751387446338,-12649.16760002,0.0001899,2]
[368896559,1751387446348,-918.10954989,0.00018992,2]
[368896561,1751387446357,-460.0,0.00019069,2]
[368896563,1751387446366,-98.53389938,0.00019069,2]
[368896565,1751387446379,-361.46610062,0.00019069,2]
[368896567,1751387446388,-1201.36,0.00019069,2]
[368896569,1751387446398,-460.0,0.00019069,2]
[368896571,1751387446408,-1487.46,0.00019069,2]
[368896573,1751387446418,-500.0,0.00019073,2]
[368896575,1751387446427,-641.59772147,0.00019073,2]
[368896577,1751387446437,-500.0,0.00019073,2]
[368896579,1751387446447,-600.0,0.00019073,2]
[368896582,1751387446457,-500.0,0.00019073,2]
[368896583,1751387446467,-500.0,0.00019073,2]
[368896585,1751387446477,-500.0,0.00019073,2]
[368896588,1751387446486,-460.0,0.0001909,2]
[368896590,1751387446496,-460.0,0.0001909,2]
[368896592,1751387446506,-1632.71,0.0001909,2]
[368896594,1751387446516,-460.0,0.0001909,2]
[368896596,1751387446529,-460.0,0.0001909,2]
[368896598,1751387446540,-460.0,0.0001909,2]
[368896600,1751387446549,-460.0,0.0001909,2]
[368896602,1751387446559,-1908.02,0.0001909,2]
[368896604,1751387446569,-1545.3,0.0001909,2]
[368896606,1751387446587,-1028.12692766,0.0001909,2]
[368896608,1751387446600,-623.66307234,0.0001909,2]
[368896610,1751387446609,-460.0,0.0001909,2]
[368896612,1751387446620,-460.0,0.0001909,2]
[368896615,1751387446632,-1040.31,0.0001909,2]
[368896617,1751387446641,-460.0,0.0001909,2]
[368896619,1751387446651,-460.0,0.0001909,2]
[368896621,1751387446661,-460.0,0.0001909,2]
[368896622,1751387446670,-460.0,0.0001909,2]
[368896624,1751387446679,-460.0,0.0001909,2]
[368896627,1751387446690,-460.0,0.0001909,2]
[368896629,1751387446699,-809.71,0.0001909,2]
[368896631,1751387446709,-500.0,0.00019091,2]
[368896633,1751387446718,-447.90001521,0.00019091,2]
[368896636,1751387446738,-460.0,0.00019091,2]
[368896638,1751387446750,-460.0,0.00019091,2]
[368896640,1751387446760,-218.98030441,0.00019092,2]
[368896642,1751387446771,-460.0,0.00019092,2]
[368896644,1751387446782,-151.32768457,0.00019092,2]
[368896646,1751387446791,-460.0,0.00019092,2]
[368896648,1751387446802,-460.0,0.00019092,2]
[368896650,1751387446811,-460.0,0.00019092,2]
[368896653,1751387446821,-427.48104392,0.00019092,2]
[368896656,1751387446831,-460.0,0.00019092,2]
[368896659,1751387446840,-460.0,0.00019092,2]
[368896661,1751387446850,-460.0,0.00019092,2]
[368896663,1751387446859,-460.0,0.00019092,2]
[368896665,1751387446869,-460.0,0.00019092,2]
[368896667,1751387446879,-460.0,0.00019092,2]
[368896669,1751387446889,-460.0,0.00019092,2]
[368896672,1751387446900,-460.0,0.00019092,2]
[368896674,1751387446910,-460.0,0.00019092,2]
[368896676,1751387446919,-460.0,0.00019092,2]
[368896678,1751387446928,-600.63,0.00019092,2]
[368896679,1751387446938,-460.0,0.00019092,2]
[368896681,1751387446947,-460.0,0.00019092,2]
[368896684,1751387446957,-460.0,0.00019092,2]
[368896686,1751387446967,-460.0,0.00019092,2]
[368896688,1751387446977,-460.0,0.00019092,2]
[368896690,1751387446986,-460.0,0.00019092,2]
[368896692,1751387446996,-460.0,0.00019092,2]
[368896694,1751387447005,-181.77,0.00019092,2]
[368896696,1751387447015,-460.0,0.00019092,2]
[368896698,1751387447024,-460.0,0.00019092,2]
[368896700,1751387447034,-460.0,0.00019092,2]
[368896702,1751387447045,-460.0,0.00019092,2]
[368896704,1751387447055,-460.0,0.00019092,2]
[368896706,1751387447064,-2367.1,0.00019092,2]
[368896708,1751387447074,-460.0,0.00019092,2]
[368896710,1751387447084,-460.0,0.00019092,2]
[368896711,1751387447093,-460.0,0.00019092,2]
[368896712,1751387447103,-460.0,0.00019092,2]
[368896713,1751387447112,-460.0,0.00019092,2]
[368896714,1751387447122,-460.0,0.00019092,2]
[368896715,1751387447132,-631.67,0.00019092,2]
[368896716,1751387447141,-460.0,0.00019092,2]
[368896717,1751387447150,-460.0,0.00019092,2]
[368896718,1751387447160,-460.0,0.00019092,2]
[368896719,1751387447170,-460.0,0.00019092,2]
[368896720,1751387447179,-460.0,0.00019092,2]
[368896721,1751387447188,-606.9,0.00019092,2]
[368896722,1751387447198,-460.0,0.00019092,2]
[368896723,1751387447207,-460.0,0.00019092,2]
[368896724,1751387447217,-460.0,0.00019092,2]
[368896725,1751387447227,-504.05,0.00019092,2]
[368896726,1751387447236,-460.0,0.00019092,2]
[368896727,1751387447245,-460.0,0.00019092,2]
[368896728,1751387447255,-460.0,0.00019092,2]
[368896729,1751387447264,-460.0,0.00019092,2]
[368896730,1751387447274,-460.0,0.00019093,2]
[368896731,1751387447284,-460.0,0.00019093,2]
[368896733,1751387447293,-460.0,0.00019093,2]
[368896735,1751387447303,-460.0,0.00019093,2]
[368896737,1751387447313,-460.0,0.00019093,2]
[368896739,1751387447323,-460.0,0.00019093,2]
[368896741,1751387447332,-460.0,0.00019093,2]
[368896743,1751387447342,-460.0,0.00019093,2]
[368896745,1751387447356,-460.0,0.00019093,2]
[368896747,1751387447366,-710.77,0.00019093,2]
[368896749,1751387447376,-460.0,0.00019093,2]
[368896750,1751387447386,-460.0,0.00019093,2]
[368896752,1751387447395,-1401.1,0.00019093,2]
[368896754,1751387447405,-460.0,0.00019093,2]
[368896756,1751387447415,-460.0,0.00019093,2]
[368896758,1751387447425,-460.0,0.00019093,2]
[368896760,1751387447435,-701.34,0.00019093,2]
[368896762,1751387447445,-460.0,0.00019093,2]
[368896764,1751387447455,-2385.87,0.00019093,2]
[368896766,1751387447465,-1000.0,0.00019121,2]
[368896769,1751387447475,-1000.0,0.00019121,2]
[368896771,1751387447485,-1168.6950686,0.00019141,2]
[368896773,1751387447494,-187.999038,0.00019178,2]
[368896775,1751387447504,-213.69126395,0.00019223,2]
[368896777,1751387447513,-460.0,0.00019343,2]
[368896779,1751387447523,-460.0,0.00019343,2]
[368896781,1751387447532,-1201.36,0.00019343,2]
[368896783,1751387447542,-294.12,0.00019343,2]
[368896785,1751387447551,-1487.46,0.00019343,2]
[368896787,1751387447561,-460.0,0.00019364,2]
[368896789,1751387447572,-460.0,0.00019364,2]
[368896791,1751387447585,-1632.71,0.00019364,2]
[368896793,1751387447595,-460.0,0.00019364,2]
[368896795,1751387447605,-460.0,0.00019364,2]
[368896797,1751387447616,-460.0,0.00019364,2]
[368896813,1751387447753,-460.0,0.00019364,2]
[368896815,1751387447763,-1908.02,0.00019364,2]
[368896817,1751387447773,-1545.3,0.00019364,2]
[368896819,1751387447783,-1651.79,0.00019364,2]
[368896821,1751387447793,-460.0,0.00019364,2]
[368896823,1751387447802,-460.0,0.00019364,2]
[368896825,1751387447812,-1040.31,0.00019364,2]
[368896827,1751387447821,-460.0,0.00019364,2]
[368896829,1751387447831,-460.0,0.00019364,2]
[368896831,1751387447840,-460.0,0.00019364,2]
[368896833,1751387447849,-460.0,0.00019364,2]
[368896835,1751387447859,-460.0,0.00019364,2]
[368896837,1751387447868,-460.0,0.00019364,2]
[368896839,1751387447878,-809.71,0.00019364,2]
[368896841,1751387447889,-460.0,0.00019366,2]
[368896843,1751387447898,-460.0,0.00019366,2]
[368896845,1751387447907,-460.0,0.00019366,2]
[368896847,1751387447917,-460.0,0.00019366,2]
[368896849,1751387447929,-460.0,0.00019366,2]
[368896851,1751387447939,-287.84,0.00019366,2]
[368896853,1751387447950,-460.0,0.00019366,2]
[368896855,1751387447959,-460.0,0.00019366,2]
[368896857,1751387447968,-460.0,0.00019366,2]
[368896859,1751387447980,-460.0,0.00019366,2]
[368896861,1751387447989,-460.0,0.00019366,2]
[368896863,1751387447999,-460.0,0.00019366,2]
[368896865,1751387448009,-600.63,0.00019366,2]
[368896867,1751387448018,-460.0,0.00019366,2]
[368896869,1751387448028,-460.0,0.00019366,2]
[368896871,1751387448038,-460.0,0.00019366,2]
[368896873,1751387448049,-460.0,0.00019366,2]
[368896875,1751387448059,-460.0,0.00019366,2]
[368896877,1751387448069,-460.0,0.00019366,2]
[368896879,1751387448079,-460.0,0.00019366,2]
[368896881,1751387448089,-460.0,0.00019366,2]
[368896883,1751387448099,-460.0,0.00019366,2]
[368896885,1751387448108,-356.84751404,0.00019366,2]
[368896887,1751387448119,-460.0,0.00019366,2]
[368896889,1751387448130,-460.0,0.00019366,2]
[368896891,1751387448139,-2367.1,0.00019366,2]
[368896893,1751387448149,-460.0,0.00019366,2]
[368896895,1751387448159,-460.0,0.00019366,2]
[368896897,1751387448170,-460.0,0.00019366,2]
[368896899,1751387448180,-460.0,0.00019366,2]
[368896901,1751387448190,-460.0,0.00019366,2]
[368896903,1751387448199,-460.0,0.00019366,2]
[368896905,1751387448208,-631.67,0.00019366,2]
[368896907,1751387448218,-460.0,0.00019366,2]
[368896909,1751387448228,-460.0,0.00019366,2]
[368896911,1751387448238,-460.0,0.00019366,2]
[368896913,1751387448248,-460.0,0.00019366,2]
[368896916,1751387448258,-460.0,0.00019366,2]
[368896917,1751387448267,-486.6643909,0.00019366,2]
[368896921,1751387448287,-120.2356091,0.00019366,2]
[368896923,1751387448297,-460.0,0.00019366,2]
[368896925,1751387448306,-460.0,0.00019366,2]
[368896927,1751387448316,-504.05,0.00019366,2]
[368896929,1751387448326,-460.0,0.00019366,2]
[368896931,1751387448335,-460.0,0.00019366,2]
[368896933,1751387448344,-460.0,0.00019366,2]
[368896935,1751387448355,-460.0,0.00019366,2]
[368896937,1751387448365,-460.0,0.00019367,2]
[368896938,1751387448375,-460.0,0.00019367,2]
[368896940,1751387448385,-460.0,0.00019367,2]
[368896942,1751387448395,-460.0,0.00019367,2]
[368896944,1751387448405,-430.85985422,0.00019367,2]
[368896946,1751387448414,-460.0,0.00019367,2]
[368896948,1751387448424,-460.0,0.00019367,2]
[368896950,1751387448433,-460.0,0.00019367,2]
[368896952,1751387448443,-370.42362277,0.00019367,2]
[368896954,1751387448456,-89.57637723,0.00019367,2]
[368896956,1751387448466,-710.77,0.00019367,2]
[368896958,1751387448476,-460.0,0.00019367,2]
[368896960,1751387448486,-460.0,0.00019367,2]
[368896962,1751387448495,-1401.1,0.00019367,2]
[368896964,1751387448505,-460.0,0.00019367,2]
[368896966,1751387448515,-460.0,0.00019367,2]
[368896968,1751387448524,-460.0,0.00019367,2]
[368896970,1751387448534,-701.34,0.00019367,2]
[368896972,1751387448543,-2385.87,0.00019367,2]
[368896974,1751387448552,-1168.6950686,0.00019383,2]
[368896976,1751387448562,-1000.0,0.00019421,2]
[368896978,1751387448574,-500.0,0.00019421,2]
[368896980,1751387448585,-837.20943635,0.00019594,2]
[368896982,1751387448595,-847.53272281,0.00019594,2]
[368896984,1751387448604,-160.0,0.00019594,2]
[368896986,1751387448613,-215.01728679,0.00019594,2]
[368896988,1751387448623,-230.32585361,0.00019594,2]
[368896990,1751387448633,-160.0,0.00019594,2]
[368896992,1751387448642,-160.0,0.00019603,2]
[368896994,1751387448655,-213.87551669,0.00019603,2]
[368896996,1751387448664,-160.0,0.00019603,2]
[368896998,1751387448673,-160.0,0.00019603,2]
[368897000,1751387448683,-1570.77543882,0.00019603,2]
[368897002,1751387448696,-2013.30535406,0.00019603,2]
[368897004,1751387448707,-591.9211643,0.00019603,2]
[368897007,1751387448719,-8395.4059461,0.00019603,2]
[368897009,1751387448729,-460.0,0.00019617,2]
[368897011,1751387448740,-460.0,0.00019617,2]
[368897013,1751387448749,-1201.36,0.00019617,2]
[368897015,1751387448758,-1487.46,0.00019617,2]
[368897017,1751387448768,-500.0,0.00019621,2]
[368897019,1751387448777,-600.0,0.00019621,2]
[368897021,1751387448787,-500.0,0.00019621,2]
[368897023,1751387448798,-500.0,0.00019621,2]
[368897025,1751387448812,-500.0,0.00019621,2]
[368897028,1751387448826,-500.0,0.00019621,2]
[368897030,1751387448840,-1168.6950686,0.00019624,2]
[368897033,1751387448854,-460.0,0.00019638,2]
[368897035,1751387448864,-227.0,0.00019638,2]
[368897037,1751387448879,-1632.71,0.00019638,2]
[368897040,1751387448892,-460.0,0.00019638,2]
[368897042,1751387448905,-460.0,0.00019638,2]
[368897045,1751387448918,-460.0,0.00019638,2]
[368897047,1751387448931,-460.0,0.00019638,2]
[368897049,1751387448944,-1908.02,0.00019638,2]
[368897052,1751387448957,-661.79679355,0.00019638,2]
[368897059,1751387449020,-460.0,0.00018816,2]
[368897061,1751387449032,-429.60239761,0.0001909,2]
[368897063,1751387449045,-883.50320645,0.00019638,2]
[368897066,1751387449061,-1651.79,0.00019638,2]
[368897068,1751387449073,-155.10439594,0.00019638,2]
[368897071,1751387449089,-304.89560406,0.00019638,2]
[368897073,1751387449100,-1040.31,0.00019638,2]
[368897075,1751387449112,-460.0,0.00019638,2]
[368897078,1751387449125,-460.0,0.00019638,2]
[368897080,1751387449137,-460.0,0.00019638,2]
[368897082,1751387449150,-460.0,0.00019638,2]